fUSD/lending_fUSD_20250627
["ID","MTS","AMOUNT","RATE_DAILY","PERIOD"]
[367983224,1750983047461,-496.14554977,0.00024318,2]
[367983226,1750983047471,-580.76,0.00024318,2]
[367983228,1750983047481,-490.0,0.00024318,2]
[367983230,1750983047491,-490.0,0.00024318,2]
[367983232,1750983047501,-490.0,0.00024318,2]
[367983235,1750983047511,-490.0,0.00024318,2]
[367983237,1750983047521,-490.0,0.00024318,2]
[367983239,1750983047531,-490.0,0.00024318,2]
[367983241,1750983047541,-490.0,0.00024318,2]
[367983243,1750983047551,-490.0,0.00024318,2]
[367983245,1750983047561,-490.0,0.00024318,2]
[367983247,1750983047571,-500.0,0.00024318,2]
[367983249,1750983047581,-490.0,0.00024318,2]
[367983251,1750983047591,-500.0,0.00024318,2]
[367983253,1750983047601,-490.0,0.00024318,2]
[367983255,1750983047611,-490.0,0.00024318,2]
[367983257,1750983047620,-490.0,0.00024318,2]
[367983259,1750983047630,-490.0,0.00024318,2]
[367983261,1750983047640,-936.17,0.00024318,2]
[367983263,1750983047650,-490.0,0.00024318,2]
[367983265,1750983047659,-490.0,0.00024318,2]
[367983267,1750983047669,-490.0,0.00024318,2]
[367983269,1750983047679,-490.0,0.00024318,2]
[367983271,1750983047689,-1600.01,0.00024318,2]
[367983273,1750983047699,-490.0,0.00024318,2]
[367983275,1750983047709,-490.0,0.00024318,2]
[367983277,1750983047720,-500.0,0.00024318,2]
[367983279,1750983047731,-420.0,0.00024318,2]
[367983281,1750983047741,-490.0,0.00024318,2]
[367983283,1750983047751,-922.08,0.00024318,2]
[367983285,1750983047761,-516.97,0.00024318,2]
[367983287,1750983047771,-451.69240868,0.00024318,2]
[367983289,1750983047781,-777.97,0.00024318,2]
[367983291,1750983047791,-3644.9,0.00024318,2]
[367983293,1750983047800,-490.0,0.00024318,2]
[367983295,1750983047810,-490.0,0.00024318,2]
[367983297,1750983047819,-490.0,0.00024318,2]
[367983299,1750983047829,-490.0,0.00024318,2]
[367983301,1750983047839,-1442.18,0.00024318,2]
[367983303,1750983047849,-490.0,0.00024318,2]
[367983306,1750983047859,-490.0,0.00024318,2]
[367983308,1750983047869,-490.0,0.00024318,2]
[367983310,1750983047878,-168.10994108,0.00024318,2]
[367983312,1750983047888,-891.5,0.00024318,2]
[367983314,1750983047898,-490.0,0.00024318,2]
[367983316,1750983047908,-490.0,0.00024318,2]
[367983318,1750983047918,-714.4,0.00024318,2]
[367983320,1750983047928,-490.0,0.00024318,2]
[367983322,1750983047938,-620.9426384,0.00024318,2]
[367983324,1750983047948,-490.0,0.00024318,2]
[367983326,1750983047958,-490.0,0.00024318,2]
[367983328,1750983047968,-214.53339754,0.00024318,2]
[367983330,1750983047977,-490.0,0.00024318,2]
[367983332,1750983047987,-1011.76,0.00024318,2]
[367983334,1750983047997,-490.0,0.00024318,2]
[367983336,1750983048007,-490.0,0.00024318,2]
[367983338,1750983048017,-490.0,0.00024318,2]
[367983340,1750983048027,-490.0,0.00024318,2]
[367983343,1750983048038,-490.0,0.00024318,2]
[367983344,1750983048047,-240.37130391,0.00024319,2]
[367983345,1750983048057,-490.0,0.00024319,2]
[367983346,1750983048067,-490.0,0.00024319,2]
[367983347,1750983048077,-655.3,0.00024319,2]
[367983348,1750983048087,-755.44,0.00024319,2]
[367983349,1750983048098,-490.0,0.00024319,2]
[367983350,1750983048108,-490.0,0.00024319,2]
[367983351,1750983048118,-490.0,0.00024319,2]
[367983352,1750983048128,-490.0,0.00024319,2]
[367983353,1750983048138,-490.0,0.00024319,2]
[367983354,1750983048147,-490.0,0.00024319,2]
[367983355,1750983048157,-490.0,0.00024319,2]
[367983357,1750983048167,-490.0,0.00024319,2]
[367983359,1750983048177,-490.0,0.00024319,2]
[367983360,1750983048186,-490.0,0.00024319,2]
[367983362,1750983048196,-558.22,0.00024319,2]
[367983363,1750983048208,-912.33,0.00024319,2]
[367983364,1750983048219,-490.0,0.00024319,2]
[367983365,1750983048229,-330.52751042,0.00024319,2]
[367983366,1750983048240,-545.28,0.00024319,2]
[367983367,1750983048251,-490.0,0.00024319,2]
[367983368,1750983048262,-490.0,0.00024319,2]
[367983369,1750983048272,-490.0,0.00024319,2]
[367983370,1750983048282,-490.0,0.00024319,2]
[367983371,1750983048292,-490.0,0.00024319,2]
[367983372,1750983048303,-490.0,0.00024319,2]
[367983373,1750983048314,-490.0,0.00024319,2]
[367983374,1750983048324,-490.0,0.00024319,2]
[367983375,1750983048334,-614.09,0.00024319,2]
[367983376,1750983048343,-490.0,0.00024319,2]
[367983377,1750983048353,-723.4,0.00024319,2]
[367983378,1750983048363,-563.91,0.00024319,2]
[367983379,1750983048372,-508.89,0.00024319,2]
[367983380,1750983048382,-599.63,0.00024319,2]
[367983381,1750983048392,-602.95,0.00024319,2]
[367983383,1750983048401,-490.0,0.00024319,2]
[367983384,1750983048411,-492.89,0.00024319,2]
[367983385,1750983048421,-592.63,0.00024319,2]
[367983386,1750983048432,-490.0,0.00024319,2]
[367983387,1750983048442,-490.0,0.00024319,2]
[367983388,1750983048453,-490.0,0.00024319,2]
[367983389,1750983048463,-490.0,0.00024319,2]
[367983390,1750983048473,-510.1,0.00024319,2]
[367983391,1750983048482,-490.0,0.00024319,2]
[367983392,1750983048493,-538.56,0.00024319,2]
[367983393,1750983048502,-490.0,0.00024319,2]
[367983394,1750983048512,-490.0,0.00024319,2]
[367983395,1750983048522,-1839.3,0.00024319,2]
[367983396,1750983048532,-490.0,0.00024319,2]
[367983397,1750983048541,-490.0,0.00024319,2]
[367983398,1750983048552,-490.0,0.00024319,2]
[367983399,1750983048562,-658.85,0.00024319,2]
[367983400,1750983048571,-500.45,0.00024319,2]
[367983401,1750983048582,-490.0,0.00024319,2]
[367983402,1750983048592,-490.0,0.00024319,2]
[367983403,1750983048602,-3573.71,0.00024319,2]
[367983404,1750983048612,-490.0,0.00024319,2]
[367983405,1750983048622,-9728.1,0.00024319,2]
[367983407,1750983048633,-490.0,0.00024319,2]
[367983409,1750983048643,-490.0,0.00024319,2]
[367983411,1750983048653,-490.0,0.00024319,2]
[367983413,1750983048663,-490.0,0.00024319,2]
[367983414,1750983048673,-3818.81,0.00024319,2]
[367983415,1750983048684,-1249.39,0.00024319,2]
[367983416,1750983048694,-516.531404,0.00024319,2]
[367983417,1750983048704,-618.12,0.00024319,2]
[367983418,1750983048715,-490.0,0.00024319,2]
[367983419,1750983048725,-877.87,0.00024319,2]
[367983420,1750983048735,-681.94,0.00024319,2]
[367983421,1750983048745,-1926.64,0.00024319,2]
[367983422,1750983048755,-490.0,0.00024319,2]
[367983423,1750983048766,-590.96,0.00024319,2]
[367983424,1750983048776,-812.27,0.00024319,2]
[367983425,1750983048787,-514.438071,0.00024319,2]
[367983426,1750983048797,-490.0,0.00024319,2]
[367983427,1750983048808,-1649.940435,0.00024319,2]
[367983428,1750983048818,-490.0,0.00024319,2]
[367983429,1750983048828,-1038.35,0.00024319,2]
[367983430,1750983048838,-987.98,0.00024319,2]
[367983431,1750983048848,-531.81,0.00024319,2]
[367983432,1750983048858,-490.0,0.00024319,2]
[367983434,1750983048868,-792.86,0.00024319,2]
[367983435,1750983048878,-162.468603,0.00024319,2]
[367983436,1750983048889,-875.56,0.00024319,2]
[367983437,1750983048899,-490.0,0.00024319,2]
[367983438,1750983048910,-607.08,0.00024319,2]
[367983439,1750983048920,-645.24,0.00024319,2]
[367983440,1750983048931,-498.0,0.00024319,2]
[367983441,1750983048941,-490.0,0.00024319,2]
[367983442,1750983048952,-1225.65,0.00024319,2]
[367983443,1750983048962,-490.0,0.00024319,2]
[367983444,1750983048972,-817.92,0.00024319,2]
[367983445,1750983048982,-762.89,0.00024319,2]
[367983446,1750983048993,-1014.6,0.00024319,2]
[367983447,1750983049002,-7624.91,0.00024319,2]
[367983448,1750983049013,-558.71,0.00024319,2]
[367983449,1750983049023,-490.0,0.00024319,2]
[367983450,1750983049034,-3752.1,0.00024319,2]
[367983451,1750983049044,-1248.12,0.00024319,2]
[367983452,1750983049054,-495.71609944,0.00024319,2]
[367983453,1750983049065,-160.37481763,0.00024319,2]
[367983454,1750983049075,-490.0,0.00024319,2]
[367983455,1750983049085,-3735.08,0.00024319,2]
[367983456,1750983049095,-490.0,0.00024319,2]
[367983457,1750983049105,-490.0,0.00024319,2]
[367983458,1750983049115,-490.0,0.00024319,2]
[367983459,1750983049125,-490.0,0.00024319,2]
[367983460,1750983049135,-490.0,0.00024319,2]
[367983461,1750983049146,-490.0,0.00024319,2]
[367983462,1750983049156,-551.25,0.00024319,2]
[367983463,1750983049166,-629.33,0.00024319,2]
[367983464,1750983049176,-723.84,0.00024319,2]
[367983465,1750983049186,-901.22,0.00024319,2]
[367983466,1750983049197,-490.0,0.00024319,2]
[367983467,1750983049210,-490.0,0.00024319,2]
[367983468,1750983049220,-635.97,0.00024319,2]
[367983469,1750983049231,-608.98,0.00024319,2]
[367983470,1750983049241,-490.0,0.00024319,2]
[367983471,1750983049256,-1312.13,0.00024319,2]
[367983472,1750983049266,-601.85,0.00024319,2]
[367983473,1750983049277,-6398.13,0.00024319,2]
[367983474,1750983049287,-1036.78,0.00024319,2]
[367983475,1750983049298,-715.56,0.00024319,2]
[367983476,1750983049309,-490.0,0.00024319,2]
[367983477,1750983049320,-490.0,0.00024319,2]
[367983478,1750983049331,-490.0,0.00024319,2]
[367983479,1750983049341,-626.9,0.00024319,2]
[367983480,1750983049352,-490.0,0.00024319,2]
[367983482,1750983049363,-570.92,0.00024319,2]
[367983508,1750983049582,-2035.01,0.00024319,2]
[367983510,1750983049614,-623.74,0.00024319,2]
[367983512,1750983049624,-749.56,0.00024319,2]
[367983514,1750983049634,-490.0,0.00024319,2]
[367983516,1750983049644,-737.2,0.00024319,2]
[367983518,1750983049653,-490.0,0.00024319,2]
[367983520,1750983049662,-808.31,0.00024319,2]
[367983522,1750983049673,-241.20357252,0.00024319,2]
[367983524,1750983049682,-490.0,0.00024319,2]
[367983526,1750983049692,-1112.93,0.00024319,2]
[367983528,1750983049701,-975.73,0.00024319,2]
[367983531,1750983049711,-1652.36,0.00024319,2]
[367983533,1750983049720,-490.0,0.00024319,2]
[367983535,1750983049730,-490.0,0.00024319,2]
[367983537,1750983049739,-2522.61,0.00024319,2]
[367983539,1750983049750,-614.71,0.00024319,2]
[367983541,1750983049760,-490.0,0.00024319,2]
[367983543,1750983049769,-490.0,0.00024319,2]
[367983545,1750983049779,-713.61,0.00024319,2]
[367983547,1750983049789,-490.0,0.00024319,2]
[367983549,1750983049799,-949.92,0.00024319,2]
[367983551,1750983049808,-629.22,0.00024319,2]
[367983553,1750983049817,-490.0,0.00024319,2]
[367983555,1750983049827,-1181.71,0.00024319,2]
[367983557,1750983049836,-496.45,0.00024319,2]
[367983559,1750983049846,-490.0,0.00024319,2]
[367983561,1750983049855,-2048.33,0.00024319,2]
[367983563,1750983049865,-3138.94,0.00024319,2]
[367983565,1750983049875,-959.89,0.00024319,2]
[367983567,1750983049884,-960.2,0.00024319,2]
[367983569,1750983049894,-490.0,0.00024319,2]
[367983571,1750983049906,-2189.82,0.00024319,2]
[367983573,1750983049916,-3555.66,0.00024319,2]
[367983575,1750983049928,-490.0,0.00024319,2]
[367983577,1750983049937,-490.0,0.00024319,2]
[367983579,1750983049947,-48840.7,0.00024319,2]
[367983582,1750983049957,-917.17,0.00024319,2]
[367983584,1750983049967,-2937.92,0.00024319,2]
[367983586,1750983049981,-490.0,0.00024319,2]
[367983588,1750983049991,-490.0,0.00024319,2]
[367983590,1750983050001,-490.0,0.00024319,2]
[367983592,1750983050010,-871.52,0.00024319,2]
[367983594,1750983050020,-490.0,0.00024319,2]
[367983596,1750983050029,-490.0,0.00024319,2]
[367983598,1750983050039,-490.0,0.00024319,2]
[367983600,1750983050050,-490.0,0.00024319,2]
[367983602,1750983050060,-490.0,0.00024319,2]
[367983604,1750983050070,-35162.01013287,0.00024338,2]
[367983606,1750983050080,-288.42943943,0.00024339,2]
[367983608,1750983050089,-460.85475402,0.0002434,2]
[367983610,1750983050100,-460.85475402,0.0002434,2]
[367983612,1750983050109,-500.0,0.00024348,2]
[367983614,1750983050119,-35162.01013287,0.0002435,2]
[367983616,1750983050129,-5608.85832393,0.00024352,2]
[367983618,1750983050139,-1248.73372893,0.00024365,2]
[367983620,1750983050149,-800.0,0.0002437,2]
[367983622,1750983050159,-500.0,0.00024373,2]
[367983625,1750983050168,-500.0,0.00024373,2]
[367983627,1750983050179,-500.0,0.00024373,2]
[367983629,1750983050189,-500.0,0.00024373,2]
[367983631,1750983050200,-166.94,0.00024383,2]
[367983633,1750983050214,-1882.06896487,0.00024384,2]
[367983635,1750983050224,-1882.06896487,0.00024385,2]
[367983637,1750983050233,-35162.01013287,0.00024395,2]
[367983639,1750983050243,-288.42943943,0.000244,2]
[367983641,1750983050254,-1248.73372893,0.00024403,2]
[367983643,1750983050264,-150.0,0.00024406,2]
[367983645,1750983050273,-35162.01013287,0.00024416,2]
[367983647,1750983050285,-200.0,0.00024418,2]
[367983649,1750983050294,-200.0,0.00024426,2]
[367983651,1750983050304,-1248.73372893,0.0002443,2]
[367983653,1750983050313,-200.0,0.00024432,2]
[367983655,1750983050323,-35162.01013287,0.00024433,2]
[367983657,1750983050334,-1248.73372893,0.00024435,2]
[367983659,1750983050343,-1882.06896487,0.00024436,2]
[367983661,1750983050353,-460.85475402,0.00024438,2]
[367983664,1750983050363,-200.0,0.00024456,2]
[367983666,1750983050374,-5608.85832393,0.0002446,2]
[367983667,1750983050383,-1882.06896487,0.00024467,2]
[367983668,1750983050392,-1248.73372893,0.00024471,2]
[367983669,1750983050402,-5608.85832393,0.00024471,2]
[367983670,1750983050412,-5608.85832393,0.00024474,2]
[367983671,1750983050422,-5608.85832393,0.00024483,2]
[367983672,1750983050431,-200.0,0.00024491,2]
[367983673,1750983050441,-2310.35524765,0.00024493,2]
[367983674,1750983050451,-150.0,0.00024497,2]
[367983675,1750983050460,-460.85475402,0.00024497,2]
[367983676,1750983050470,-161.4818249,0.000245,2]
[367983677,1750983050479,-500.0,0.00024504,2]
[367983678,1750983050489,-150.0,0.00024515,2]
[367983679,1750983050498,-167.11668737,0.00024553,2]
[367983680,1750983050508,-286.11549688,0.00024582,2]
[367983682,1750983050517,-490.0,0.00024592,2]
[367983684,1750983050527,-490.0,0.00024592,2]
[367983686,1750983050537,-490.0,0.00024592,2]
[367983688,1750983050547,-490.0,0.00024592,2]
[367983690,1750983050556,-490.0,0.00024592,2]
[367983692,1750983050566,-490.0,0.00024592,2]
[367983694,1750983050575,-490.0,0.00024592,2]
[367983696,1750983050585,-490.0,0.00024592,2]
[367983698,1750983050594,-490.0,0.00024592,2]
[367983700,1750983050604,-490.0,0.00024592,2]
[367983702,1750983050614,-490.0,0.00024592,2]
[367983704,1750983050624,-350.0,0.00024592,2]
[367983706,1750983050634,-490.0,0.00024592,2]
[367983708,1750983050643,-490.0,0.00024592,2]
[367983710,1750983050653,-490.0,0.00024592,2]
[367983712,1750983050663,-496.76215266,0.00024592,2]
[367983714,1750983050672,-490.0,0.00024592,2]
[367983717,1750983050682,-490.0,0.00024592,2]
[367983719,1750983050693,-490.0,0.00024592,2]
[367983721,1750983050702,-490.0,0.00024592,2]
[367983723,1750983050713,-490.0,0.00024592,2]
[367983725,1750983050724,-490.0,0.00024592,2]
[367983727,1750983050734,-490.0,0.00024592,2]
[367983729,1750983050744,-490.0,0.00024592,2]
[367983731,1750983050754,-490.0,0.00024592,2]
[367983733,1750983050764,-490.0,0.00024592,2]
[367983735,1750983050774,-490.0,0.00024592,2]
[367983737,1750983050784,-490.0,0.00024592,2]
[367983739,1750983050793,-490.0,0.00024592,2]
[367983741,1750983050803,-511.35857461,0.00024592,2]
[367983743,1750983050813,-490.0,0.00024592,2]
[367983745,1750983050822,-490.0,0.00024592,2]
[367983747,1750983050833,-490.0,0.00024592,2]
[367983749,1750983050843,-490.0,0.00024592,2]
[367983751,1750983050853,-490.0,0.00024592,2]
[367983753,1750983050863,-490.0,0.00024592,2]
[367983756,1750983050872,-550.66,0.00024592,2]
[367983758,1750983050882,-490.0,0.00024592,2]
[367983760,1750983050892,-490.0,0.00024592,2]
[367983762,1750983050902,-490.0,0.00024592,2]
[367983764,1750983050912,-571.59990499,0.00024592,2]
[367983766,1750983050921,-543.28,0.00024592,2]
[367983768,1750983050931,-490.0,0.00024592,2]
[367983770,1750983050941,-490.0,0.00024592,2]
[367983772,1750983050951,-490.0,0.00024592,2]
[367983774,1750983050960,-587.08,0.00024592,2]
[367983776,1750983050970,-490.0,0.00024592,2]
[367983778,1750983050980,-490.0,0.00024592,2]
[367983780,1750983050990,-490.0,0.00024592,2]
[367983782,1750983051000,-490.0,0.00024592,2]
[367983784,1750983051009,-490.0,0.00024592,2]
[367983786,1750983051019,-490.0,0.00024592,2]
[367983788,1750983051029,-490.0,0.00024592,2]
[367983790,1750983051039,-511.81,0.00024592,2]
[367983792,1750983051048,-490.0,0.00024592,2]
[367983794,1750983051058,-490.0,0.00024592,2]
[367983796,1750983051067,-490.0,0.00024592,2]
[367983798,1750983051077,-490.0,0.00024592,2]
[367983800,1750983051087,-490.0,0.00024592,2]
[367983802,1750983051097,-518.14,0.00024592,2]
[367983804,1750983051106,-490.0,0.00024592,2]
[367983806,1750983051115,-490.0,0.00024592,2]
[367983808,1750983051125,-490.0,0.00024592,2]
[367983810,1750983051135,-490.0,0.00024592,2]
[367983812,1750983051144,-490.0,0.00024592,2]
[367983814,1750983051153,-490.0,0.00024592,2]
[367983816,1750983051163,-490.0,0.00024592,2]
[367983818,1750983051172,-490.0,0.00024592,2]
[367983820,1750983051183,-490.0,0.00024592,2]
[367983822,1750983051192,-490.0,0.00024592,2]
[367983824,1750983051203,-490.0,0.00024592,2]
[367983826,1750983051218,-490.0,0.00024592,2]
[367983828,1750983051228,-490.0,0.00024592,2]
[367983830,1750983051237,-490.0,0.00024592,2]
[367983832,1750983051246,-490.0,0.00024592,2]
[367983834,1750983051256,-490.0,0.00024592,2]
[367983836,1750983051265,-490.0,0.00024592,2]
[367983838,1750983051275,-972.66,0.00024592,2]
[367983840,1750983051284,-384.72123352,0.00024592,2]
[367983842,1750983051293,-490.0,0.00024592,2]
[367983844,1750983051303,-490.0,0.00024592,2]
[367983846,1750983051312,-490.0,0.00024592,2]
[367983848,1750983051322,-490.0,0.00024592,2]
[367983850,1750983051331,-490.0,0.00024592,2]
[367983852,1750983051341,-490.0,0.00024592,2]
[367983854,1750983051350,-719.16,0.00024592,2]
[367983856,1750983051359,-490.0,0.00024592,2]
[367983858,1750983051371,-545.81,0.00024592,2]
[367983860,1750983051380,-490.0,0.00024592,2]
[367983862,1750983051390,-490.0,0.00024592,2]
[367983864,1750983051400,-550.53,0.00024592,2]
[367983866,1750983051409,-490.0,0.00024592,2]
[367983868,1750983051418,-490.0,0.00024592,2]
[367983870,1750983051429,-490.0,0.00024592,2]
[367983872,1750983051439,-490.0,0.00024592,2]
[367983874,1750983051448,-490.0,0.00024592,2]
[367983877,1750983051457,-490.0,0.00024592,2]
[367983879,1750983051466,-490.0,0.00024592,2]
[367983881,1750983051476,-490.0,0.00024592,2]
[367983883,1750983051485,-490.0,0.00024592,2]
[367983885,1750983051495,-490.0,0.00024592,2]
[367983887,1750983051505,-571.25,0.00024592,2]
[367983889,1750983051514,-494.00976539,0.00024592,2]
[367983891,1750983051523,-490.0,0.00024592,2]
[367983893,1750983051533,-490.0,0.00024592,2]
[367983895,1750983051543,-584.29,0.00024592,2]
[367983897,1750983051552,-195.67712203,0.00024592,2]
[367983899,1750983051562,-490.0,0.00024592,2]
[367983901,1750983051571,-490.0,0.00024592,2]
[367983903,1750983051580,-490.0,0.00024592,2]
[367983905,1750983051590,-504.66,0.00024592,2]
[367983907,1750983051599,-490.0,0.00024592,2]
[367983909,1750983051608,-490.0,0.00024592,2]
[367983911,1750983051618,-490.0,0.00024592,2]
[367983913,1750983051627,-490.0,0.00024592,2]
[367983914,1750983051637,-490.0,0.00024592,2]
[367983916,1750983051646,-490.0,0.00024592,2]
[367983917,1750983051655,-490.0,0.00024592,2]
[367983919,1750983051664,-490.0,0.00024592,2]
[367983921,1750983051675,-490.0,0.00024592,2]
[367983923,1750983051684,-618.85,0.00024592,2]
[367983924,1750983051693,-490.0,0.00024592,2]
[367983926,1750983051703,-490.0,0.00024592,2]
[367983928,1750983051712,-490.0,0.00024592,2]
[367983929,1750983051722,-490.0,0.00024592,2]
[367983931,1750983051732,-490.0,0.00024592,2]
[367983933,1750983051742,-490.0,0.00024592,2]
[367983934,1750983051752,-490.0,0.00024592,2]
[367983936,1750983051762,-490.0,0.00024592,2]
[367983938,1750983051772,-490.0,0.00024592,2]
[367983939,1750983051781,-493.74544053,0.00024592,2]
[367983941,1750983051791,-490.0,0.00024592,2]
[367983943,1750983051800,-490.0,0.00024592,2]
[367983945,1750983051810,-490.0,0.00024592,2]
[367983946,1750983051819,-490.0,0.00024592,2]
[367983948,1750983051829,-599.23,0.00024592,2]
[367983950,1750983051838,-490.0,0.00024592,2]
[367983951,1750983051847,-729.2,0.00024592,2]
[367983953,1750983051856,-490.0,0.00024592,2]
[367983955,1750983051866,-490.0,0.00024592,2]
[367983957,1750983051875,-490.0,0.00024592,2]
[367983959,1750983051884,-505.75,0.00024592,2]
[367983960,1750983051893,-490.0,0.00024592,2]
[367983962,1750983051903,-490.0,0.00024592,2]
[367983969,1750983051982,-490.0,0.00024592,2]
[367983971,1750983051993,-1000.0,0.00024592,2]
[367983972,1750983052002,-490.0,0.00024592,2]
[367983974,1750983052012,-989.3,0.00024592,2]
[367983976,1750983052021,-490.0,0.00024592,2]
[367983978,1750983052030,-490.0,0.00024592,2]
[367983979,1750983052040,-490.0,0.00024592,2]
[367983981,1750983052049,-490.0,0.00024592,2]
[367983983,1750983052059,-490.0,0.00024592,2]
[367983985,1750983052069,-205.68310639,0.00024592,2]
[367983986,1750983052078,-490.0,0.00024592,2]
[367983988,1750983052088,-490.0,0.00024592,2]
[367983990,1750983052097,-490.0,0.00024592,2]
[367983992,1750983052107,-490.0,0.00024592,2]
[367983994,1750983052116,-1276.9,0.00024592,2]
[367983996,1750983052126,-490.0,0.00024592,2]
[367983997,1750983052135,-490.0,0.00024592,2]
[367983999,1750983052145,-490.0,0.00024592,2]
[367984001,1750983052155,-490.0,0.00024592,2]
[367984003,1750983052165,-490.0,0.00024592,2]
[367984005,1750983052175,-490.0,0.00024592,2]
[367984006,1750983052184,-969.67,0.00024592,2]
[367984008,1750983052193,-725.69,0.00024592,2]
[367984010,1750983052203,-490.0,0.00024592,2]
[367984012,1750983052215,-490.0,0.00024592,2]
[367984014,1750983052224,-490.0,0.00024592,2]
[367984015,1750983052233,-490.0,0.00024592,2]
[367984017,1750983052242,-490.0,0.00024592,2]
[367984019,1750983052251,-964.11,0.00024592,2]
[367984021,1750983052263,-490.0,0.00024592,2]
[367984023,1750983052272,-490.0,0.00024592,2]
[367984024,1750983052282,-490.0,0.00024592,2]
[367984026,1750983052292,-490.0,0.00024592,2]
[367984028,1750983052301,-490.0,0.00024592,2]
[367984030,1750983052311,-490.0,0.00024592,2]
[367984032,1750983052320,-1187.68,0.00024592,2]
[367984033,1750983052329,-490.0,0.00024592,2]
[367984035,1750983052338,-554.89,0.00024592,2]
[367984037,1750983052348,-490.0,0.00024592,2]
[367984039,1750983052357,-490.0,0.00024592,2]
[367984041,1750983052366,-490.0,0.00024592,2]
[367984042,1750983052375,-1213.4,0.00024592,2]
[367984044,1750983052384,-490.0,0.00024592,2]
[367984046,1750983052393,-490.0,0.00024592,2]
[367984048,1750983052403,-490.0,0.00024592,2]
[367984050,1750983052412,-494.52502003,0.00024592,2]
[367984051,1750983052422,-490.0,0.00024592,2]
[367984053,1750983052433,-1717.5,0.00024592,2]
[367984055,1750983052442,-490.0,0.00024592,2]
[367984057,1750983052451,-500.0,0.00024592,2]
[367984059,1750983052460,-490.0,0.00024592,2]
[367984061,1750983052470,-490.0,0.00024592,2]
[367984062,1750983052479,-490.0,0.00024592,2]
[367984064,1750983052488,-490.0,0.00024592,2]
[367984066,1750983052498,-490.0,0.00024592,2]
[367984068,1750983052507,-490.0,0.00024592,2]
[367984070,1750983052516,-490.0,0.00024592,2]
[367984071,1750983052525,-1267.06,0.00024592,2]
[367984073,1750983052534,-549.09,0.00024592,2]
[367984075,1750983052543,-496.20458828,0.00024592,2]
[367984077,1750983052554,-490.0,0.00024592,2]
[367984078,1750983052564,-980.28,0.00024592,2]
[367984080,1750983052573,-2372.84,0.00024592,2]
[367984082,1750983052583,-576.93,0.00024592,2]
[367984084,1750983052592,-490.0,0.00024592,2]
[367984086,1750983052601,-490.0,0.00024592,2]
[367984088,1750983052611,-490.0,0.00024592,2]
[367984089,1750983052620,-490.0,0.00024592,2]
[367984091,1750983052630,-490.0,0.00024592,2]
[367984093,1750983052641,-490.0,0.00024592,2]
[367984095,1750983052650,-857.25,0.00024592,2]
[367984097,1750983052660,-490.0,0.00024592,2]
[367984098,1750983052669,-490.0,0.00024592,2]
[367984100,1750983052679,-490.0,0.00024592,2]
[367984102,1750983052689,-1357.55,0.00024592,2]
[367984104,1750983052699,-763.75,0.00024592,2]